bitfinex/quotes_ETHUSD_20250913
["timestamp","ask_amount","ask_price","bid_price","bid_amount"]
[1757726893940,27.07362035,4712.9,4712.8,5.5332]
[1757726894122,27.07362035,4712.9,4712.8,9.1002]
[1757726895256,28.30362035,4712.9,4712.8,3.061]
[1757726895483,28.30362035,4712.9,4712.8,6.628]
[1757726896356,29.53362035,4712.9,4712.8,6.628]
[1757726897887,30.76362035,4712.9,4712.8,6.628]
[1757726899348,31.99362035,4712.9,4712.8,6.628]
[1757726900370,31.99362035,4712.9,4712.8,3.061]
[1757726900575,31.99362035,4712.9,4712.8,6.628]
[1757726900763,33.22362035,4712.9,4712.8,6.628]
[1757726902377,34.45362035,4712.9,4712.8,6.628]
[1757726903484,35.23132035,4712.9,4712.8,6.628]
[1757726903686,36.46132035,4712.9,4712.8,6.628]
[1757726904673,35.68362035,4712.9,4712.8,6.628]
[1757726905091,36.91362035,4712.9,4712.8,6.628]
[1757726905270,36.91362035,4712.9,4712.8,9.081]
[1757726905465,36.91362035,4712.9,4712.8,6.628]
[1757726905802,37.69132035,4712.9,4712.8,6.628]
[1757726906190,36.91362035,4712.9,4712.8,3.061]
[1757726906489,38.14362035,4712.9,4712.8,6.628]
[1757726906911,38.14362035,4712.9,4712.8,9.081]
[1757726907912,39.37362035,4712.9,4712.8,9.081]
[1757726909197,40.60362035,4712.9,4712.8,9.081]
[1757726909903,40.60362035,4712.9,4712.8,5.514]
[1757726910107,40.60362035,4712.9,4712.8,8.8152]
[1757726910301,40.60362035,4712.9,4712.8,6.627]
[1757726910509,41.83362035,4712.9,4712.8,6.627]
[1757726911878,46.12762035,4712.9,4712.8,6.627]
[1757726912376,43.84132035,4712.9,4712.8,6.627]
[1757726912897,48.28751754,4712.9,4712.8,3.627]
[1757726913410,49.51751754,4712.9,4712.8,3.627]
[1757726914680,50.74751754,4712.9,4712.8,3.627]
[1757726916080,51.97751754,4712.9,4712.8,3.627]
[1757726917192,51.97751754,4712.9,4712.8,0.061]
[1757726917399,53.20751754,4712.9,4712.8,3.627]
[1757726917820,53.20751754,4712.9,4712.8,0.061]
[1757726918029,53.20751754,4712.9,4712.8,3.627]
[1757726918726,54.43751754,4712.9,4712.8,3.627]
[1757726920106,55.66751754,4712.9,4712.8,3.627]
[1757726921644,56.89751754,4712.9,4712.8,3.627]
[1757726922908,58.12751754,4712.9,4712.8,3.627]
[1757726923104,55.84121754,4712.9,4712.8,3.627]
[1757726923422,55.06351754,4712.9,4712.8,3.627]
[1757726923625,52.90362035,4712.9,4712.8,3.627]
[1757726924327,54.13362035,4712.9,4712.8,3.627]
[1757726924934,54.91132035,4712.9,4712.8,3.627]
[1757726925224,57.02742035,4712.9,4712.8,3.627]
[1757726925659,58.25742035,4712.9,4712.8,3.627]
[1757726925962,60.41731754,4712.9,4712.8,0.061]
[1757726926168,60.41731754,4712.9,4712.8,3.627]
[1757726927180,61.64731754,4712.9,4712.8,0.061]
[1757726927340,61.64731754,4712.9,4712.8,3.627]
[1757726927869,61.64731754,4712.9,4712.8,0.061]
[1757726928172,61.64731754,4712.9,4712.8,3.627]
[1757726928332,62.87731754,4712.9,4712.8,3.627]
[1757726928841,62.87731754,4712.9,4712.8,0.061]
[1757726929042,62.87731754,4712.9,4712.8,3.627]
[1757726929239,62.87731754,4712.9,4712.8,0.061]
[1757726929663,64.10731754,4712.9,4712.8,0.061]
[1757726931150,65.33731754,4712.9,4712.8,0.061]
[1757726932649,66.56731754,4712.9,4712.8,0.061]
[1757726933988,67.79731754,4712.9,4712.8,0.061]
[1757726935396,69.02731754,4712.9,4712.8,0.061]
[1757726936785,70.25731754,4712.9,4712.8,0.061]
[1757726938073,71.48731754,4712.9,4712.8,0.061]
[1757726939289,68.59351754,4712.9,4712.8,0.061]
[1757726939493,70.58001754,4712.9,4712.8,0.061]
[1757726940702,69.82351754,4712.9,4712.8,0.061]
[1757726940906,71.81001754,4712.9,4712.8,0.061]
[1757726941105,71.81001754,4712.9,4712.8,3.626]
[1757726941618,74.02471754,4712.9,4712.8,3.626]
[1757726942286,75.25471754,4712.9,4712.8,3.626]
[1757726943313,75.25471754,4712.9,4712.5,1.627]
[1757726943314,1.24362035,4712.5,4712.4,0.001]
[1757726943820,10.95203079,4712.5,4712.4,0.001]
[1757726944880,7.77982035,4712.5,4712.4,0.001]
[1757726945318,9.00982035,4712.5,4712.4,0.001]
[1757726946209,9.4382344,4712.5,4712.4,0.001]
[1757726946389,11.59813159,4712.5,4712.4,0.001]
[1757726946589,12.82813159,4712.5,4712.4,0.001]
[1757726947989,14.05813159,4712.5,4712.4,0.001]
[1757726949435,15.28813159,4712.5,4712.4,0.001]
[1757726950817,19.69034203,4712.5,4712.4,0.001]
[1757726951512,16.51813159,4712.5,4712.4,0.001]
[1757726951713,14.30343159,4712.5,4712.4,0.001]
[1757726952023,9.98193159,4712.5,4712.4,0.001]
[1757726952225,10.41993159,4712.5,4712.4,2.2837]
[1757726952424,11.21193159,4712.5,4712.4,2.2837]
[1757726953750,12.01351754,4712.5,4712.4,2.2837]
[1757726955052,13.24351754,4712.5,4712.4,2.2837]
[1757726955969,13.24351754,4712.5,4712.4,0.2658]
[1757726956174,13.24351754,4712.5,4712.4,0.001]
[1757726956342,14.47351754,4712.5,4712.4,2.3197]
[1757726957191,14.47351754,4712.5,4712.4,0.001]
[1757726957545,14.93151754,4712.5,4712.4,0.001]
[1757726957869,15.70351754,4712.5,4712.4,0.001]
[1757726959309,16.93351754,4712.5,4712.4,0.001]
[1757726960856,18.91001754,4712.5,4712.4,0.001]
[1757726961160,25.22932816,4712.5,4712.4,0.001]
[1757726961376,25.6261652,4712.5,4712.4,0.001]
[1757726962165,26.8561652,4712.5,4712.4,0.001]
[1757726962605,0.8976,4712.4,4712.3,0.001]
[1757726962740,8.36496919,4712.4,4712.3,0.001]
[1757726963117,14.4372733,4712.4,4712.3,0.001]
[1757726963714,15.6672733,4712.4,4712.3,0.001]
[1757726965016,1.24362035,4712.0,4711.9,0.001]
[1757726965318,6.79870971,4712.0,4711.9,0.001]
[1757726965615,10.08166804,4712.0,4711.9,0.001]
[1757726966182,13.71838023,4712.0,4711.9,0.001]
[1757726966376,16.0389746,4712.0,4711.9,0.001]
[1757726966581,17.2689746,4712.0,4711.9,0.001]
[1757726967615,1.24362035,4710.9,4710.8,0.06]
[1757726967817,9.41983079,4710.9,4710.8,0.06]
[1757726967989,6.56501271,4710.9,4710.8,0.06]
[1757726968189,7.67597364,4710.9,4710.8,0.06]
[1757726968377,9.05933586,4710.9,4710.8,0.06]
[1757726968580,9.96526945,4710.9,4710.8,0.06]
[1757726969518,10.99691616,4710.9,4710.8,0.06]
[1757726970729,13.99691616,4710.9,4710.8,0.06]
[1757726970919,14.30179138,4710.9,4710.8,0.06]
[1757726971121,1.24362035,4710.0,4709.9,2.0539]
[1757726971315,0.792,4709.9,4709.5,2.0539]
[1757726971840,0.45162035,4709.6,4709.3,1.628]
[1757726972047,0.45162035,4709.6,4709.5,0.2648]
[1757726972341,2.47362035,4709.6,4709.5,0.2648]
[1757726972909,2.47362035,4709.6,4709.5,2.3187]
[1757726973600,3.70362035,4709.6,4709.5,2.3187]
[1757726974418,4.07398239,4709.6,4709.5,2.3187]
[1757726974948,0.792,4709.5,4709.3,1.628]
[1757726975455,0.792,4709.5,4709.3,3.6819]
[1757726975657,0.792,4709.5,4709.4,0.2648]
[1757726975854,0.792,4709.5,4709.4,2.3187]
[1757726976754,0.792,4709.4,4709.3,1.628]
[1757726977115,4.84767465,4709.5,4709.0,2.0539]
[1757726977317,0.792,4709.4,4709.1,2.0539]
[1757726977534,1.24362035,4708.9,4708.8,3.7905]
[1757726977829,1.24362035,4708.9,4708.8,4.0053]
[1757726978050,2.47362035,4708.9,4708.8,6.0592]
[1757726978458,2.47362035,4708.9,4708.8,2.2787]
[1757726979244,3.70362035,4708.9,4708.8,2.2787]
[1757726979868,3.70362035,4708.9,4708.8,5.8437]
[1757726980870,4.93362035,4708.9,4708.8,5.8437]
[1757726982654,6.16362035,4708.9,4708.8,5.8437]
[1757726984278,7.39362035,4708.9,4708.8,5.8437]
[1757726985803,8.62362035,4708.9,4708.8,5.8437]
[1757726986173,8.62362035,4708.9,4708.8,5.8447]
[1757726986572,8.62362035,4708.9,4708.8,2.2797]
[1757726986772,8.62362035,4708.9,4708.8,5.8447]
[1757726987171,9.85362035,4708.9,4708.8,5.8447]
[1757726988725,11.08362035,4708.9,4708.8,5.8447]
[1757726990081,12.31362035,4708.9,4708.8,5.8447]
[1757726990275,12.31362035,4708.9,4708.8,2.2797]
[1757726990478,12.31362035,4708.9,4708.8,5.8447]
[1757726991600,13.54362035,4708.9,4708.8,5.8447]
[1757726992190,13.54362035,4708.9,4708.8,2.2797]
[1757726992504,13.54362035,4708.9,4708.8,0.001]
[1757726992712,15.50972035,4708.9,4708.8,3.566]
[1757726993291,15.21612035,4708.9,4708.8,3.566]
[1757726993485,14.77362035,4708.9,4708.8,3.566]
[1757726993685,14.77362035,4708.9,4708.8,5.7771]
[1757726994326,16.00362035,4708.9,4708.8,3.566]
[1757726994532,0.8976,4708.8,4708.7,1.629]
[1757726994692,1.3401,4708.8,4708.7,1.629]
[1757726995034,1.6337,4708.8,4708.7,1.629]
[1757726995333,1.3401,4708.8,4708.7,1.629]
[1757726995627,2.1276,4708.8,4708.7,1.629]
[1757726995824,2.1276,4708.8,4708.7,5.194]
[1757726996190,2.1276,4708.8,4708.7,1.629]
[1757726996417,2.1276,4708.8,4708.7,5.194]
[1757726996993,3.3576,4708.8,4708.7,5.194]
[1757726997226,3.3576,4708.8,4708.7,7.4051]
[1757726997735,2.46,4708.8,4708.7,7.5306]
[1757726998436,3.69,4708.8,4708.7,7.5306]
[1757726998597,3.69,4708.8,4708.7,10.5306]
[1757726999295,3.7956,4708.8,4708.7,10.5306]
[1757726999930,5.0256,4708.8,4708.7,10.5306]
[1757727000410,5.0256,4708.8,4708.7,10.5296]
[1757727001398,6.2556,4708.8,4708.7,10.4041]
[1757727001830,7.0476,4708.8,4708.7,10.4041]
[1757727002726,9.55028666,4708.8,4708.7,1.629]
[1757727002914,9.55028666,4708.8,4708.7,5.193]
[1757727004233,10.78028666,4708.8,4708.7,5.193]
[1757727005406,12.01028666,4708.8,4708.7,5.193]
[1757727006335,11.4737,4708.8,4708.7,5.193]
[1757727007054,11.9676,4708.8,4708.7,5.193]
[1757727007838,11.9676,4708.8,4708.7,7.4041]
[1757727007839,11.1756,4708.8,4708.7,7.4041]
[1757727008042,11.07,4708.8,4708.7,10.5296]
[1757727008248,12.3,4708.8,4708.7,10.5296]
[1757727009033,12.3,4708.8,4708.7,6.8401]
[1757727009248,13.092,4708.8,4708.7,6.8401]
[1757727009583,13.092,4708.8,4708.7,8.193]
[1757727009742,14.322,4708.8,4708.7,8.193]
[1757727009944,14.6156,4708.8,4708.7,4.629]
[1757727010148,15.0581,4708.8,4708.7,8.193]
[1757727010576,14.7645,4708.8,4708.7,8.193]
[1757727010776,14.7645,4708.8,4708.7,10.4041]
[1757727010777,14.322,4708.8,4708.7,10.4041]
[1757727011135,15.552,4708.8,4708.7,10.4041]
[1757727011475,14.76,4708.8,4708.7,10.5296]
[1757727011880,14.76,4708.8,4708.7,10.4041]
[1757727012552,15.99,4708.8,4708.7,10.4041]
[1757727012874,17.5181,4708.8,4708.7,8.193]
[1757727013808,21.79629719,4708.8,4708.7,1.629]
[1757727013946,23.02629719,4708.8,4708.7,5.193]
[1757727014644,20.90799719,4708.8,4708.7,5.193]
[1757727015251,22.13799719,4708.8,4708.7,5.193]
[1757727015444,19.242,4708.8,4708.7,5.193]
[1757727015899,19.541,4708.8,4708.7,5.193]
[1757727016105,19.9773,4708.8,4708.7,5.193]
[1757727016900,19.242,4708.8,4708.7,5.3938]
[1757727017101,20.472,4708.8,4708.7,7.3466]
[1757727018183,20.472,4708.8,4708.7,5.193]
[1757727018603,21.702,4708.8,4708.7,5.193]
[1757727018980,22.001,4708.8,4708.7,5.193]
[1757727019186,22.4373,4708.8,4708.7,5.193]
[1757727019706,22.4373,4708.8,4708.7,1.629]
[1757727019910,23.6673,4708.8,4708.7,5.192]
[1757727020884,22.932,4708.8,4708.7,5.192]
[1757727021379,24.162,4708.8,4708.7,5.192]
[1757727022530,23.37,4708.8,4708.7,10.3456]
[1757727022727,24.6,4708.8,4708.7,10.3456]
[1757727024257,25.83,4708.8,4708.7,10.3456]
[1757727025005,25.83,4708.8,4708.7,10.4711]
[1757727025605,27.06,4708.8,4708.7,10.4711]
[1757727025947,27.062,4708.8,4708.7,10.4711]
[1757727026839,27.062,4708.8,4708.7,10.3456]
[1757727027053,28.292,4708.8,4708.7,10.3456]
[1757727028354,29.522,4708.8,4708.7,10.3456]
[1757727029735,30.752,4708.8,4708.7,10.3456]
[1757727030236,30.752,4708.8,4708.7,40.4711]
[1757727030751,30.752,4708.8,4708.7,40.5767]
[1757727030925,30.752,4708.8,4708.7,36.8882]
[1757727031250,31.982,4708.8,4708.7,40.4512]
[1757727031413,31.982,4708.8,4708.7,40.5767]
[1757727032465,33.212,4708.8,4708.7,40.5767]
[1757727033769,33.212,4708.8,4708.7,10.5767]
[1757727033976,34.442,4708.8,4708.7,40.5767]
[1757727034981,34.442,4708.8,4708.7,42.46767625]
[1757727035388,35.672,4708.8,4708.7,42.46767625]
[1757727035686,35.672,4708.8,4708.7,40.5767]
[1757727036560,35.672,4708.8,4708.7,40.4711]
[1757727036755,36.902,4708.8,4708.7,40.4711]
[1757727037354,36.902,4708.8,4708.7,40.89952058]
[1757727037557,32.8959122,4708.8,4708.7,41.28785692]
[1757727037796,32.8959122,4708.8,4708.7,7.72485692]
[1757727037949,32.8959122,4708.8,4708.7,39.5509538]
[1757727038283,34.1259122,4708.8,4708.7,43.1129538]
[1757727038454,34.1259122,4708.8,4708.7,40.4701]
[1757727039484,35.3559122,4708.8,4708.7,40.4701]
[1757727040007,35.3559122,4708.8,4708.7,44.73539301]
[1757727040553,33.53538566,4708.8,4708.7,44.73539301]
[1757727040785,31.71500966,4708.8,4708.7,44.73539301]
[1757727041092,32.03482166,4708.8,4708.7,44.73539301]
[1757727041472,32.03482166,4708.8,4708.7,45.50131562]
[1757727041655,32.03482166,4708.8,4708.7,42.86061043]
[1757727041987,32.03482166,4708.8,4708.7,42.97122104]
[1757727042375,33.26482166,4708.8,4708.7,42.97122104]
[1757727043801,34.49482166,4708.8,4708.7,42.97122104]
[1757727044587,33.30914135,4708.8,4708.7,42.52814696]
[1757727044786,32.91392121,4708.8,4708.7,42.52814696]
[1757727045107,33.35348093,4708.8,4708.7,42.52814696]
[1757727046262,33.35348093,4708.8,4708.7,42.33840175]
[1757727046469,34.58348093,4708.8,4708.7,42.33840175]
[1757727046689,34.44750773,4708.8,4708.7,42.44400175]
[1757727046892,34.31153579,4708.8,4708.7,43.07940193]
[1757727047909,35.54153579,4708.8,4708.7,43.07940193]
[1757727049071,35.50924371,4708.8,4708.7,45.16403776]
[1757727049273,36.73924371,4708.8,4708.7,45.16403776]
[1757727049581,36.73924371,4708.8,4708.7,45.71241741]
[1757727049896,36.71502474,4708.8,4708.7,45.71241741]
[1757727050092,36.71502474,4708.8,4708.7,39.02591741]
[1757727050432,36.71502474,4708.8,4708.7,38.60090193]
[1757727050631,37.94502474,4708.8,4708.7,38.61252228]
[1757727050912,37.93558803,4708.8,4708.7,36.65972228]
[1757727051113,38.23598803,4708.8,4708.7,31.26992228]
[1757727051272,40.72808803,4708.8,4708.7,35.82440018]
[1757727051472,40.72808803,4708.8,4708.7,35.188]
[1757727051707,40.72808803,4708.8,4708.7,38.188]
[1757727052010,39.90148803,4708.8,4708.7,38.188]
[1757727052876,39.90148803,4708.8,4708.7,35.188]
[1757727053071,39.90148803,4708.8,4708.7,38.188]
[1757727053278,41.13148803,4708.8,4708.7,38.188]
[1757727053793,40.39558803,4708.8,4708.7,38.188]
[1757727053993,40.39558803,4708.8,4708.7,40.3127]
[1757727054201,40.39558803,4708.8,4708.7,38.188]
[1757727054724,41.62558803,4708.8,4708.7,38.188]
[1757727056004,42.36148803,4708.8,4708.7,34.628]
[1757727056204,43.59148803,4708.8,4708.7,38.188]
[1757727056413,43.59148803,4708.8,4708.7,35.188]
[1757727056630,42.85558803,4708.8,4708.7,38.188]
[1757727056830,42.85558803,4708.8,4708.7,38.3888]
[1757727057130,42.85558803,4708.8,4708.7,40.3127]
[1757727057507,44.08558803,4708.8,4708.7,40.3127]
[1757727057710,44.08558803,4708.8,4708.7,38.188]
[1757727059035,45.61598803,4708.8,4708.7,38.188]
[1757727059615,46.05148803,4708.8,4708.7,38.188]
[1757727059836,45.31558803,4708.8,4708.7,38.188]
[1757727060031,45.31558803,4708.8,4708.7,38.3888]
[1757727060408,46.54558803,4708.8,4708.7,39.02533656]
[1757727060810,44.47134428,4708.8,4708.7,41.74123656]
[1757727060999,44.47134428,4708.8,4708.7,42.41511621]
[1757727061430,44.47134428,4708.8,4708.7,42.52071621]
[1757727061868,45.70134428,4708.8,4708.7,38.28683656]
[1757727062034,45.70134428,4708.8,4708.7,41.84683656]
[1757727062853,45.70134428,4708.8,4708.7,42.39521621]
[1757727063052,45.70134428,4708.8,4708.7,45.49316641]
[1757727063255,46.93134428,4708.8,4708.7,45.36766641]
[1757727063458,46.93134428,4708.8,4708.7,45.49316641]
[1757727064271,46.93134428,4708.8,4708.7,39.57866641]
[1757727064469,46.93134428,4708.8,4708.7,42.69557648]
[1757727064654,48.16134428,4708.8,4708.7,42.69557648]
[1757727065135,48.16134428,4708.8,4708.7,12.69557648]
[1757727065454,48.16134428,4708.8,4708.7,42.69557648]
[1757727066265,49.39134428,4708.8,4708.7,42.69557648]
[1757727066771,49.39134428,4708.8,4708.7,42.50583127]
[1757727067471,49.39134428,4708.8,4708.7,43.0744212]
[1757727067768,50.62134428,4708.8,4708.7,43.0744212]
[1757727068636,50.62134428,4708.8,4708.7,45.3034212]
[1757727069004,38.13,4708.8,4708.7,16.5754212]
[1757727069276,1.6655,4712.0,4710.7,0.54837965]
[1757727069439,0.4355,4711.5,4710.8,0.792]
[1757727069634,0.4355,4711.5,4711.0,0.792]
[1757727069899,0.4355,4711.4,4711.1,33.305776]
[1757727070058,0.92602354,4712.4,4711.2,29.732776]
[1757727070267,0.7359,4711.3,4711.2,29.732776]
[1757727070432,0.7359,4711.3,4711.2,3.574]
[1757727070967,0.7359,4711.3,4711.2,33.306776]
[1757727071149,0.7359,4711.3,4711.2,36.306776]
[1757727071737,0.792,4711.2,4710.1,2.64107179]
[1757727071972,0.45162035,4709.9,4709.6,1.628]
[1757727072136,0.45162035,4709.9,4709.7,4.5421875]
[1757727072334,0.45162035,4709.9,4709.8,1.627]
[1757727073152,0.45162035,4709.9,4709.8,1.64823232]
[1757727073354,0.45162035,4709.9,4709.8,1.627]
[1757727075473,0.45162035,4709.9,4709.8,6.714]
[1757727075653,1.68162035,4709.9,4709.8,6.714]
[1757727075853,1.84978239,4709.9,4709.8,6.714]
[1757727076073,1.84978239,4709.9,4709.8,4.10432334]
[1757727076317,1.23,4709.9,4709.8,4.10432334]
[1757727076521,1.23,4709.9,4709.8,4.12555566]
[1757727076818,1.23,4709.9,4709.8,4.10432334]
[1757727077316,2.46,4709.9,4709.8,2.73109743]
[1757727078483,3.69,4709.9,4709.8,2.73109743]
[1757727078907,4.14162035,4709.9,4709.8,2.73109743]
[1757727079295,3.69,4709.9,4709.8,5.73109743]
[1757727079828,4.92,4709.9,4709.8,5.73109743]
[1757727080045,5.37162035,4709.9,4709.8,5.73109743]
[1757727081120,6.60162035,4709.9,4709.8,5.73109743]
[1757727081532,6.15,4709.9,4709.8,5.73109743]
[1757727081831,6.60162035,4709.9,4709.8,5.73109743]
[1757727082034,8.01588239,4709.9,4709.8,5.73109743]
[1757727082251,8.01588239,4709.9,4709.8,9.32709743]
[1757727082576,9.24588239,4709.9,4709.8,9.32709743]
[1757727083515,9.24588239,4709.9,4709.8,9.32609743]
[1757727083724,10.47588239,4709.9,4709.8,9.32609743]
[1757727085358,11.70588239,4709.9,4709.8,9.32709743]
[1757727085647,11.70788239,4709.9,4709.8,9.32709743]
[1757727086944,12.93788239,4709.9,4709.8,9.32709743]
[1757727087118,13.72988239,4709.9,4709.8,2.73209743]
[1757727087320,13.72988239,4709.9,4709.8,6.32409743]
[1757727087927,12.97578239,4709.9,4709.8,6.32409743]
[1757727088236,14.20578239,4709.9,4709.8,6.32409743]
[1757727089423,16.18988239,4709.9,4709.8,2.73209743]
[1757727089623,15.43578239,4709.9,4709.8,6.32409743]
[1757727090323,16.18988239,4709.9,4709.8,6.32409743]
[1757727090523,16.18988239,4709.9,4709.8,2.73209743]
[1757727090728,16.18988239,4709.9,4709.8,6.32309743]
[1757727090929,17.41988239,4709.9,4709.8,6.32309743]
[1757727092465,18.64988239,4709.9,4709.8,6.32309743]
[1757727092934,18.64988239,4709.9,4709.8,2.73209743]
[1757727093264,18.64988239,4709.9,4709.8,6.32209743]
[1757727093763,19.87988239,4709.9,4709.8,6.32209743]
[1757727095084,21.10988239,4709.9,4709.8,6.32209743]
[1757727095383,21.10988239,4709.9,4709.8,5.218]
[1757727096588,22.33988239,4709.9,4709.8,5.218]
[1757727097885,23.56988239,4709.9,4709.8,5.218]
[1757727099286,24.79988239,4709.9,4709.8,5.218]
[1757727100254,0.792,4709.0,4708.8,0.061]
[1757727100458,1.24362035,4709.0,4708.9,5.214]
[1757727100658,2.47362035,4709.0,4708.9,5.214]
[1757727101892,3.70362035,4709.0,4708.9,5.214]
[1757727103171,4.93362035,4709.0,4708.9,5.214]
[1757727103486,5.50508238,4709.0,4708.9,5.214]
[1757727104660,6.73508238,4709.0,4708.9,5.214]
[1757727106291,7.96508238,4709.0,4708.9,5.214]
[1757727107604,9.19508238,4709.0,4708.9,5.214]
[1757727108809,8.62362035,4709.0,4708.9,5.523]
[1757727109108,9.85362035,4709.0,4708.9,8.3984]
[1757727110274,9.06162035,4709.0,4708.9,11.3984]
[1757727110474,10.29162035,4709.0,4708.9,11.3984]
[1757727111097,9.84,4709.0,4708.9,11.3984]
[1757727111299,9.1096875,4709.0,4708.9,41.3984]
[1757727111500,8.6346875,4709.0,4708.9,41.504]
[1757727111714,9.29129028,4709.0,4708.9,41.504]
[1757727112579,9.03723156,4709.0,4708.9,41.504]
[1757727113329,10.26723156,4709.0,4708.9,41.504]
[1757727114208,10.26723156,4709.0,4708.9,11.504]
[1757727114409,10.26723156,4709.0,4708.9,41.504]
[1757727114612,11.49723156,4709.0,4708.9,41.504]
[1757727115880,12.72723156,4709.0,4708.9,41.504]
[1757727116076,12.57297212,4709.0,4708.9,41.504]
[1757727116611,12.41871268,4709.0,4708.9,41.504]
[1757727117378,13.64871268,4709.0,4708.9,41.504]
[1757727118724,14.87871268,4709.0,4708.9,41.504]
[1757727120136,16.10871268,4709.0,4708.9,41.504]
[1757727121128,15.68418945,4709.0,4708.9,41.504]
[1757727121543,16.91418945,4709.0,4708.9,41.504]
[1757727122412,16.91418945,4709.0,4708.9,11.504]
[1757727122617,16.91418945,4709.0,4708.9,41.504]
[1757727122945,18.14418945,4709.0,4708.9,41.504]
[1757727124233,19.37418945,4709.0,4708.9,41.504]
[1757727124649,19.37418945,4709.0,4708.9,47.61]
[1757727125350,19.48588945,4709.0,4708.9,37.8396]
[1757727125657,20.60418945,4709.0,4708.9,44.4156]
[1757727126155,20.60418945,4709.0,4708.9,41.4156]
[1757727126313,20.60418945,4709.0,4708.9,44.7246]
[1757727126645,20.60418945,4709.0,4708.9,47.6]
[1757727126846,21.83418945,4709.0,4708.9,47.6]
[1757727128143,23.06418945,4709.0,4708.9,47.6]
[1757727129626,24.29418945,4709.0,4708.9,47.6]
[1757727130813,24.29418945,4709.0,4708.9,47.1323]
[1757727131125,24.29418945,4709.0,4708.9,44.4156]
[1757727131126,25.52418945,4709.0,4708.9,44.4156]
[1757727131311,25.52418945,4709.0,4708.9,44.7246]
[1757727131517,25.52418945,4709.0,4708.9,47.6]
[1757727132458,26.75418945,4709.0,4708.9,47.1323]
[1757727132677,26.75418945,4709.0,4708.9,17.1323]
[1757727132834,26.75418945,4709.0,4708.9,47.1323]
[1757727133171,27.05908945,4709.0,4708.9,44.4156]
[1757727133467,27.05908945,4709.0,4708.9,44.4116]
[1757727133630,28.28908945,4709.0,4708.9,44.4116]
[1757727134443,28.28908945,4709.0,4708.9,14.306]
[1757727134768,29.31048945,4709.0,4708.9,11.306]
[1757727135066,32.03036026,4709.0,4708.9,14.306]
[1757727136248,33.26036026,4709.0,4708.9,14.306]
[1757727136475,33.71198061,4709.0,4708.9,11.306]
[1757727137052,33.71198061,4709.0,4708.9,14.306]
[1757727137637,34.94198061,4709.0,4708.9,14.306]
[1757727138067,34.18788061,4709.0,4708.9,14.306]
[1757727138377,32.1258098,4709.0,4708.9,14.306]
[1757727138740,31.67418945,4709.0,4708.9,14.306]
[1757727138940,33.6603098,4709.0,4708.9,14.306]
[1757727139877,32.90418945,4709.0,4708.9,17.0554]
[1757727140082,32.90418945,4709.0,4708.9,47.5109]
[1757727140292,34.13418945,4709.0,4708.9,47.5109]
[1757727140690,34.13618945,4709.0,4708.9,47.5109]
[1757727141392,34.13618945,4709.0,4708.9,43.525]
[1757727141605,35.36618945,4709.0,4708.9,43.525]
[1757727142163,35.49328945,4709.0,4708.9,43.525]
[1757727143197,36.59618945,4709.0,4708.9,43.525]
[1757727143585,36.72648945,4709.0,4708.9,43.525]
[1757727144386,36.59618945,4709.0,4708.9,43.525]
[1757727144585,37.82618945,4709.0,4708.9,43.525]
[1757727144783,37.82618945,4709.0,4708.9,13.525]
[1757727144987,37.82618945,4709.0,4708.9,43.525]
[1757727145293,37.95328945,4709.0,4708.9,43.525]
[1757727145658,37.95328945,4709.0,4708.9,10.524]
[1757727145903,40.11318664,4709.0,4708.9,10.524]
[1757727146193,40.11318664,4709.0,4708.9,13.8394]
[1757727146194,39.05618945,4709.0,4708.9,13.8394]
[1757727146511,39.05618945,4709.0,4708.9,46.7289]
[1757727147106,39.05618945,4709.0,4708.9,43.1579]
[1757727147392,40.28618945,4709.0,4708.9,46.7339]
[1757727148599,40.28618945,4709.0,4708.9,46.2784]
[1757727148804,41.51618945,4709.0,4708.9,46.7339]
[1757727149862,41.51618945,4709.0,4708.9,46.8395]
[1757727150409,42.74618945,4709.0,4708.9,46.8395]
[1757727151500,42.74618945,4709.0,4708.9,46.384]
[1757727151814,43.97618945,4709.0,4708.9,46.8395]
[1757727153091,45.20618945,4709.0,4708.9,46.8395]
[1757727154710,46.43618945,4709.0,4708.9,46.8395]
[1757727156238,47.66618945,4709.0,4708.9,46.8395]
[1757727157640,48.89618945,4709.0,4708.9,46.8395]
[1757727159195,50.12618945,4709.0,4708.9,46.8395]
[1757727160418,51.35618945,4709.0,4708.9,46.8395]
[1757727160626,51.35618945,4709.0,4708.9,46.384]
[1757727160830,51.35618945,4709.0,4708.9,43.6346]
[1757727160992,51.35618945,4709.0,4708.9,43.95]
[1757727161399,51.35618945,4709.0,4708.9,46.384]
[1757727161598,51.35618945,4709.0,4708.9,46.8395]
[1757727161823,52.58618945,4709.0,4708.9,46.8395]
[1757727163213,53.81618945,4709.0,4708.9,46.8395]
[1757727163697,51.34598945,4709.0,4708.9,49.20401469]
[1757727163898,28.81601385,4709.0,4708.9,50.08011575]
[1757727164097,28.05306471,4709.0,4708.9,50.08011575]
[1757727164497,29.28306471,4709.0,4708.9,50.08011575]
[1757727164900,29.28306471,4709.0,4708.9,48.65011575]
[1757727165099,29.28306471,4709.0,4708.9,52.41517707]
[1757727165805,30.51306471,4709.0,4708.9,52.17547889]
[1757727166019,30.51306471,4709.0,4708.9,48.41041757]
[1757727167125,31.74306471,4709.0,4708.9,48.41041757]
[1757727168012,31.74306471,4709.0,4708.9,45.97641757]
[1757727168214,31.74306471,4709.0,4708.9,41.15291757]
[1757727168447,31.74306471,4709.0,4708.9,44.72691757]
[1757727168755,32.97306471,4709.0,4708.9,45.51891757]
[1757727170020,34.20306471,4709.0,4708.9,45.51891757]
[1757727170453,34.20306471,4709.0,4708.9,41.15291757]
[1757727170753,34.20306471,4709.0,4708.9,45.51891757]
[1757727170957,34.20306471,4709.0,4708.9,15.51891757]